bitfinex-derivatives/quotes_SOLF0:USTF0_20241107
["timestamp","ask_amount","ask_price","bid_price","bid_amount"]
[1730980792546,6.59086862,186.15,186.1,1.2394]
[1730980793746,0.6887,186.24,186.1,1.2394]
[1730980794048,6.59086862,186.21,186.14,6.59086862]
[1730980794247,6.59086862,186.19,186.15,2.5333]
[1730980794642,2.6845,186.17,186.15,2.5333]
[1730980794841,6.59086862,186.19,186.15,2.5333]
[1730980795047,6.59086862,186.17,186.15,2.5333]
[1730980795639,2.6846,186.16,186.15,2.5333]
[1730980797943,2.6846,186.16,186.1,1.2394]
[1730980797944,2.6849,186.15,186.1,1.2394]
[1730980798252,6.59086862,186.16,186.1,1.2394]
[1730980798849,5.04,186.23,186.1,1.2394]
[1730980799147,6.59086862,186.16,186.1,1.2394]
[1730980799454,2.685,186.14,186.1,1.2394]
[1730980799759,6.59086862,186.16,186.1,1.2394]
[1730980799950,2.6851,186.13,186.1,1.2394]
[1730980800449,6.59086862,186.16,186.1,1.2394]
[1730980800450,2.6849,186.15,186.1,1.2394]
[1730980800646,5.04,186.23,186.1,1.2394]
[1730980800647,6.59086862,186.14,186.1,1.2394]
[1730980801350,2.6851,186.13,186.1,1.2394]
[1730980802049,2.6851,186.13,186.08,5.3287]
[1730980802050,6.59086862,186.14,186.08,2.643]
[1730980802242,6.59086862,186.13,186.08,2.643]
[1730980802851,2.6853,186.12,186.08,2.643]
[1730980803164,0.6905,186.22,186.09,6.59086862]
[1730980803165,1.2285,186.21,186.09,6.59086862]
[1730980803345,5.04,186.22,186.12,6.59086862]
[1730980803547,6.12371388,186.27,186.12,6.59086862]
[1730980803854,6.59086862,186.19,186.08,2.643]
[1730980804057,6.59086862,186.17,186.12,6.59086862]
[1730980805050,6.59086862,186.19,186.12,6.59086862]
[1730980805856,6.59086862,186.19,186.09,11.23375826]
[1730980806049,6.59086862,186.19,186.1,6.18160873]
[1730980806246,6.59086862,186.17,186.12,6.59086862]
[1730980806849,6.59086862,186.15,186.11,1.2854]
[1730980807356,6.59086862,186.18,186.11,7.87626862]
[1730980807961,6.59086862,186.18,186.11,10.56146862]
[1730980808259,6.59086862,186.17,186.11,7.87626862]
[1730980808450,6.59086862,186.17,186.13,9.27586862]
[1730980808646,6.59086862,186.17,186.14,2.5794]
[1730980810057,2.6846,186.16,186.14,2.5794]
[1730980810360,6.59086862,186.17,186.14,2.5794]
[1730980811456,6.59086862,186.16,186.14,2.5794]
[1730980811652,2.6847,186.15,186.14,2.5794]
[1730980812961,2.6851,186.13,186.11,1.2854]
[1730980813351,6.59086862,186.16,186.11,7.87626862]
[1730980813656,2.6846,186.16,186.11,7.87626862]
[1730980813857,6.59086862,186.19,186.12,9.27596862]
[1730980814348,2.6846,186.17,186.12,9.27596862]
[1730980815162,6.59086862,186.18,186.12,9.27596862]
[1730980815358,2.6846,186.16,186.12,6.59086862]
[1730980816257,5.15304,186.23,186.12,6.59086862]
[1730980816466,0.21304,186.23,186.15,2.6846]
[1730980816761,6.59086862,186.17,186.11,1.2854]
[1730980817062,6.59086862,186.17,186.11,7.87626862]
[1730980817458,6.59086862,186.17,186.12,6.1829399]
[1730980817663,2.6852,186.12,186.11,1.2854]
[1730980819062,2.6852,186.12,186.09,2.5456]
[1730980819270,2.6854,186.11,186.09,2.5456]
[1730980819462,6.59086862,186.13,186.09,2.5456]
[1730980819661,2.6854,186.11,186.09,2.5456]
[1730980820058,6.59086862,186.13,186.09,1.339]
[1730980820363,2.6855,186.1,186.09,1.339]
[1730980820770,6.59086862,186.09,186.04,1.222]
[1730980820962,2.686,186.07,186.05,6.18419284]
[1730980821159,4.94,186.18,186.01,1.3041]
[1730980821160,6.59086862,186.1,186.01,1.3041]
[1730980821360,2.6859,186.08,186.03,9.27736862]
[1730980821560,2.6859,186.08,186.04,7.52712195]
[1730980821761,2.6859,186.08,186.05,6.18358299]
[1730980822064,2.6859,186.08,186.03,9.27736862]
[1730980822260,2.6859,186.08,186.04,6.18375336]
[1730980822455,2.6859,186.08,186.05,6.18375336]
[1730980822668,2.6859,186.08,186.03,9.27736862]
[1730980822860,2.6854,186.11,186.06,2.686]
[1730980823061,2.6854,186.11,186.07,6.59086862]
[1730980823267,6.59086862,186.12,186.07,6.59086862]
[1730980823664,4.94,186.16,186.08,2.6857]
[1730980823868,2.6848,186.15,186.08,6.59086862]
[1730980824163,6.59086862,186.15,186.09,1.2712]
[1730980825261,5.18391,186.18,186.09,1.2712]
[1730980825461,6.59086862,186.14,186.09,1.2712]
[1730980826162,7.90913922,186.18,186.09,1.2712]
[1730980826362,5.18391,186.18,186.09,1.2712]
[1730980826557,6.59086862,186.14,186.09,1.2712]
[1730980827474,9.27576862,186.14,186.09,3.9567]
[1730980829673,2.685,186.13,186.09,3.9567]
[1730980831764,2.6849,186.15,186.1,9.27626862]
[1730980832069,6.83477862,186.18,186.12,6.59086862]
[1730980832475,2.6846,186.16,186.12,9.27606862]
[1730980833673,6.83477862,186.18,186.12,9.27606862]
[1730980833865,2.6848,186.15,186.12,9.27606862]
[1730980834069,2.6848,186.15,186.12,6.59086862]
[1730980834664,6.83477862,186.18,186.12,6.59086862]
[1730980834859,6.83477862,186.18,186.12,9.27606862]
[1730980834860,2.6847,186.16,186.12,9.27606862]
[1730980835268,2.6847,186.16,186.11,2.6853]
[1730980835269,2.6848,186.15,186.11,2.6853]
[1730980835568,6.59086862,186.16,186.1,6.59086862]
[1730980835967,2.6851,186.13,186.1,6.59086862]
[1730980836566,0.24391,186.18,186.1,6.59086862]
[1730980836772,6.59086862,186.14,186.1,6.59086862]
[1730980837165,2.6851,186.13,186.1,6.59086862]
[1730980837568,6.59086862,186.14,186.1,6.59086862]
[1730980837765,2.6852,186.12,186.1,6.59086862]
[1730980837981,6.59086862,186.14,186.1,6.59086862]
[1730980838175,6.59086862,186.14,186.09,1.2712]
[1730980838375,6.59086862,186.13,186.09,1.2712]
[1730980838672,6.59086862,186.11,186.06,1.2062]
[1730980838881,2.6859,186.07,186.06,1.2062]
[1730980839280,6.59086862,186.11,186.06,1.1062]
[1730980839583,4.66,186.15,185.96,2.4699]
[1730980839876,0.5918,186.19,186.09,6.59086862]
[1730980840080,2.6852,186.12,186.09,6.59086862]
[1730980840578,2.6852,186.12,186.07,2.4633]
[1730980840773,2.6852,186.12,186.09,6.59086862]
[1730980841380,7.46105798,186.2,186.11,6.59086862]
[1730980841684,1.3323,186.2,186.13,6.49086862]
[1730980841883,6.59086862,186.19,186.13,6.49086862]
[1730980842276,6.49086862,186.19,186.13,6.49086862]
[1730980842678,1.3323,186.2,186.13,6.39086862]
[1730980842679,2.6845,186.17,186.13,6.39086862]
[1730980842880,6.12875798,186.24,186.13,6.39086862]
[1730980843081,6.59086862,186.19,186.13,6.39086862]
[1730980843283,6.49086862,186.19,186.13,6.39086862]
[1730980843782,2.6843,186.18,186.13,6.39086862]
[1730980843985,2.6843,186.18,186.13,6.29086862]
[1730980844791,2.5843,186.18,186.13,6.29086862]
[1730980844993,2.5843,186.18,186.13,8.97586862]
[1730980845188,2.5843,186.18,186.13,8.87586862]
[1730980845683,2.4843,186.18,186.13,8.87586862]
[1730980845887,2.6845,186.17,186.13,8.87586862]
[1730980846092,6.49086862,186.19,186.13,6.59086862]
[1730980846790,6.39086862,186.19,186.13,6.59086862]
[1730980846999,2.6847,186.16,186.13,6.49086862]
[1730980847799,2.6843,186.18,186.15,6.59086862]
[1730980847994,6.12875798,186.24,186.14,6.59086862]
[1730980848294,6.59086862,186.19,186.14,6.59086862]
[1730980848498,2.6846,186.16,186.14,6.59086862]
[1730980848704,2.5846,186.16,186.14,6.59086862]
[1730980848900,2.5846,186.16,186.14,6.49086862]
[1730980849703,2.6843,186.19,186.15,6.59086862]
[1730980850198,6.49086862,186.21,186.15,6.59086862]
[1730980851202,2.6843,186.18,186.15,6.59086862]
[1730980851596,2.6843,186.18,186.14,9.27566862]
[1730980852805,9.27496862,186.2,186.15,9.27556862]
[1730980853105,1.2246,186.29,186.18,6.59086862]
[1730980853410,1.2246,186.29,186.1,1.1629]
[1730980853411,6.59086862,186.26,186.22,6.59086862]
[1730980853801,2.6833,186.26,186.23,6.59086862]
[1730980854004,6.59086862,186.28,186.21,2.6838]
[1730980854305,1.2246,186.29,186.21,2.6838]
[1730980854306,9.27416862,186.26,186.21,6.59086862]
[1730980854501,6.59086862,186.26,186.2,6.59086862]
[1730980854706,6.59086862,186.24,186.19,7.84686862]
[1730980855101,1.2246,186.29,186.19,7.84686862]
[1730980855397,2.6833,186.25,186.2,9.27476862]
[1730980856106,2.6832,186.26,186.22,6.59086862]
[1730980857397,6.59086862,186.28,186.22,6.59086862]
[1730980857603,2.683,186.27,186.22,9.27456862]
[1730980858203,1.2304,186.34,186.19,1.256]
[1730980858404,2.683,186.27,186.24,6.59086862]
[1730980860109,6.59086862,186.31,186.26,6.59086862]
[1730980860504,2.683,186.27,186.26,6.59086862]
[1730980861609,2.683,186.27,186.24,6.59086862]
[1730980862007,1.2304,186.34,186.24,6.59086862]
[1730980862208,6.59086862,186.31,186.24,6.59086862]
[1730980862409,2.683,186.28,186.24,9.27416862]
[1730980863714,6.59086862,186.31,186.24,9.27416862]
[1730980863908,2.683,186.27,186.24,6.59086862]
[1730980864305,2.6829,186.28,186.24,6.59086862]
[1730980864632,2.6829,186.28,186.26,6.59086862]
[1730980866517,2.6829,186.28,186.25,6.59086862]
[1730980868216,2.6828,186.29,186.25,9.27406862]
[1730980868406,6.59086862,186.3,186.25,6.59086862]
[1730980868816,2.6829,186.28,186.22,2.6837]
[1730980869017,6.59086862,186.29,186.24,6.59086862]
[1730980870418,6.59086862,186.3,186.24,6.59086862]
[1730980870817,2.6829,186.28,186.24,6.59086862]
[1730980871413,6.59086862,186.3,186.26,6.59086862]
[1730980871414,2.6831,186.27,186.26,6.59086862]
[1730980872015,2.6829,186.28,186.26,6.59086862]
[1730980874217,6.12875798,186.37,186.27,6.59086862]
[1730980874421,6.59086862,186.32,186.27,6.59086862]
[1730980875621,2.6825,186.31,186.27,6.59086862]
[1730980876123,6.59086862,186.33,186.27,6.59086862]
[1730980876725,2.6823,186.32,186.27,6.59086862]
[1730980878428,6.59086862,186.32,186.21,4.42]
[1730980878624,2.6826,186.3,186.27,6.59086862]
[1730980879321,2.6825,186.31,186.27,6.59086862]
[1730980882133,6.59086862,186.34,186.28,6.59086862]
[1730980883725,2.6823,186.32,186.28,6.59086862]
[1730980884427,2.6822,186.33,186.3,6.59086862]
[1730980891740,2.6822,186.33,186.32,6.59086862]
[1730980891933,6.10197908,186.37,186.32,6.59086862]
[1730980892139,0.6908,186.41,186.33,6.59086862]
[1730980892333,6.59086862,186.39,186.33,6.59086862]
[1730980893340,6.59086862,186.39,186.35,6.59086862]
[1730980894743,2.6817,186.36,186.35,6.59086862]
[1730980895654,6.59086862,186.39,186.35,6.59086862]
[1730980895845,6.1060784,186.42,186.37,6.59086862]
[1730980896045,6.59086862,186.42,186.38,6.59086862]
[1730980896248,2.6814,186.39,186.38,6.59086862]
[1730980897236,4.16,186.47,186.38,6.59086862]
[1730980897435,6.59086862,186.45,186.4,6.59086862]
[1730980899344,2.6808,186.43,186.4,6.59086862]
[1730980899743,6.59086862,186.47,186.42,6.59086862]
[1730980899943,2.6806,186.44,186.42,6.59086862]
[1730980900943,2.6805,186.45,186.42,6.59086862]
[1730980901243,1.2563,186.5,186.43,6.59086862]
[1730980901550,2.6804,186.46,186.43,6.59086862]
[1730980901942,6.59086862,186.48,186.43,6.59086862]
[1730980902549,2.6802,186.47,186.43,6.59086862]
[1730980902851,6.59086862,186.48,186.43,6.59086862]
[1730980903247,6.59086862,186.48,186.39,2.6812]
[1730980903550,6.59086862,186.48,186.42,6.59086862]
[1730980904746,2.6803,186.46,186.42,6.59086862]
[1730980904946,15.0,186.5,186.44,6.59086862]
[1730980905148,21.59086862,186.5,186.42,2.6807]
[1730980905450,2.68,186.48,186.45,6.59086862]
[1730980905644,21.59086862,186.5,186.45,6.59086862]
[1730980905845,21.39086862,186.5,186.45,6.59086862]
[1730980906044,21.39086862,186.5,186.43,3.7528]
[1730980906244,2.6801,186.48,186.44,6.59086862]
[1730980906848,2.4801,186.48,186.44,6.59086862]
[1730980907049,2.4801,186.48,186.44,6.39086862]
[1730980907652,2.2801,186.48,186.44,6.39086862]
[1730980907854,2.2801,186.48,186.44,6.19086862]
[1730980908855,2.0801,186.48,186.44,6.19086862]
[1730980909051,2.0801,186.48,186.44,5.99086862]
[1730980909353,2.0801,186.48,186.45,6.59086862]
[1730980910252,1.8801,186.48,186.45,6.59086862]
[1730980910458,17.4797,186.5,186.47,6.59086862]
[1730980910651,14.8,186.5,186.47,6.59086862]
[1730980910855,14.8,186.5,186.49,6.39086862]
[1730980911056,14.8,186.5,186.46,4.16]
[1730980911255,14.8,186.5,186.49,6.59086862]
[1730980911758,14.6,186.5,186.49,6.59086862]
[1730980911958,14.6,186.5,186.49,6.39086862]
[1730980912858,14.4,186.5,186.49,6.39086862]
[1730980913051,14.4,186.5,186.49,6.19086862]
[1730980913658,14.2,186.5,186.49,6.19086862]
[1730980914051,14.2,186.5,186.49,5.99086862]
[1730980914665,14.0,186.5,186.49,5.99086862]
[1730980914863,16.6797,186.5,186.49,5.79086862]
[1730980915158,20.59086862,186.5,186.43,1.0722]
[1730980915363,6.59086862,186.48,186.43,7.66306862]
[1730980915662,6.39086862,186.48,186.43,7.66306862]
[1730980916162,2.6804,186.46,186.43,7.66306862]
[1730980916958,6.39086862,186.48,186.43,7.66306862]
[1730980917164,2.6806,186.44,186.43,1.0722]
[1730980920163,6.59086862,186.46,186.41,1.2891]
[1730980920470,6.59086862,186.45,186.39,6.59086862]
[1730980921669,2.6809,186.42,186.39,6.59086862]
[1730980921962,6.59086862,186.43,186.32,2.5696]
[1730980922166,3.9,186.49,186.35,6.59086862]
[1730980922167,6.59086862,186.41,186.35,6.59086862]
[1730980922365,2.6816,186.37,186.35,6.59086862]
[1730980922669,6.59086862,186.41,186.35,6.59086862]
[1730980922854,2.6813,186.39,186.35,6.59086862]
[1730980923059,6.59086862,186.44,186.37,6.59086862]
[1730980923460,2.6807,186.43,186.4,6.59086862]
[1730980923665,6.59086862,186.47,186.41,6.59086862]
[1730980924468,2.6808,186.43,186.41,6.59086862]
[1730980925769,14.0,186.5,186.41,6.59086862]
[1730980926164,20.59086862,186.5,186.43,6.59086862]
[1730980926469,2.6802,186.47,186.43,6.59086862]
[1730980927170,2.6802,186.47,186.45,6.59086862]
[1730980928760,14.0,186.5,186.45,6.59086862]
[1730980928958,2.68,186.48,186.45,6.59086862]
[1730980929666,2.6805,186.45,186.36,3.9]
[1730980929862,2.6805,186.45,186.41,6.59086862]
[1730980930663,2.6806,186.44,186.41,6.59086862]
[1730980931563,2.6811,186.41,186.37,1.264]
[1730980931773,2.6811,186.41,186.38,6.59086862]
[1730980932066,2.6808,186.43,186.38,6.59086862]
[1730980932271,2.6808,186.43,186.4,6.59086862]
[1730980933071,6.59086862,186.46,186.4,6.59086862]
[1730980933271,2.6809,186.42,186.4,6.59086862]
[1730980933472,2.6809,186.42,186.38,6.59086862]
[1730980933771,2.681,186.41,186.38,6.59086862]
[1730980933976,6.59086862,186.44,186.38,6.59086862]
[1730980934370,2.6813,186.39,186.38,6.59086862]
[1730980934571,2.6813,186.39,186.37,7.85486862]
[1730980935078,2.6813,186.39,186.37,6.59086862]
[1730980936972,6.59086862,186.46,186.38,6.59086862]
[1730980937183,6.59086862,186.46,186.41,6.59086862]
[1730980937677,2.6809,186.42,186.41,6.59086862]
[1730980938379,2.6808,186.43,186.41,6.59086862]
[1730980938877,6.59086862,186.47,186.41,6.59086862]
[1730980939071,2.6809,186.42,186.41,6.59086862]
[1730980939272,6.59086862,186.45,186.39,6.59086862]
[1730980939970,2.6811,186.4,186.39,6.59086862]
[1730980940774,2.6811,186.41,186.39,6.59086862]
[1730980941281,2.6809,186.42,186.39,6.59086862]
[1730980942479,2.6809,186.42,186.41,6.59086862]
[1730980945370,6.09642747,186.49,186.41,6.59086862]
[1730980945572,2.6807,186.44,186.41,6.59086862]
[1730980946480,2.6807,186.44,186.43,6.59086862]
[1730980946684,6.09642747,186.49,186.43,6.59086862]
[1730980946982,20.09642747,186.5,186.45,6.59086862]
[1730980947377,2.6803,186.46,186.45,6.59086862]
[1730980947574,20.09642747,186.5,186.45,6.59086862]
[1730980948084,2.6799,186.49,186.45,6.59086862]
[1730980948288,20.09642747,186.5,186.45,6.59086862]
[1730980948481,20.09642747,186.5,186.47,6.59086862]
[1730980948680,14.0,186.5,186.47,6.59086862]
[1730980949782,2.6801,186.48,186.47,6.59086862]
[1730980950675,2.6799,186.49,186.47,6.59086862]
[1730980950880,2.6799,186.49,186.48,6.59086862]
[1730980951081,14.0,186.5,186.48,6.59086862]
[1730980953489,14.0,186.5,186.48,9.27076862]
[1730980954183,14.0,186.5,186.48,6.59086862]
[1730980954792,6.59086862,186.59,186.49,2.6799]
[1730980954992,6.59086862,186.59,186.54,6.59086862]
[1730980955290,12.70830094,186.6,186.54,6.59086862]
[1730980955499,12.70830094,186.6,186.56,6.59086862]
[1730980955500,6.11743232,186.6,186.56,6.59086862]
[1730980955688,1.264,186.61,186.56,6.59086862]
[1730980955886,2.6787,186.58,186.56,6.59086862]
[1730980956397,1.264,186.61,186.49,1.292]
[1730980956398,2.6781,186.61,186.57,6.59086862]
[1730980956692,2.6781,186.61,186.6,6.59086862]
[1730980957087,2.6783,186.6,186.59,6.59086862]
[1730980957693,2.6784,186.59,186.57,6.59086862]
[1730980958295,6.11743232,186.63,186.57,6.59086862]
[1730980958499,6.11743232,186.63,186.59,6.59086862]
[1730980958800,6.11743232,186.63,186.61,6.59086862]
[1730980959890,6.59086862,186.67,186.61,6.59086862]
[1730980960290,2.6774,186.66,186.61,6.59086862]
[1730980960491,6.59086862,186.67,186.62,6.59086862]
[1730980960803,6.59086862,186.67,186.61,6.59086862]
[1730980961801,6.59086862,186.65,186.55,2.6143]
[1730980962000,6.59086862,186.65,186.59,6.59086862]
[1730980963596,6.59086862,186.64,186.59,6.59086862]
[1730980963897,2.6783,186.6,186.59,6.59086862]
[1730980964096,2.6783,186.6,186.58,6.59086862]
[1730980964995,6.59086862,186.64,186.58,6.59086862]
[1730980965193,2.6784,186.59,186.58,6.59086862]
[1730980965398,6.59086862,186.63,186.58,6.59086862]
[1730980966293,6.59086862,186.63,186.55,1.3101]
[1730980966493,6.59086862,186.63,186.58,6.59086862]
[1730980967196,6.59086862,186.63,186.57,6.59086862]
[1730980967590,2.6786,186.58,186.55,1.3101]
[1730980967801,6.59086862,186.6,186.53,6.59086862]
[1730980968401,2.6788,186.56,186.53,6.59086862]
[1730980969506,6.59086862,186.6,186.53,6.59086862]
[1730980969702,2.679,186.55,186.53,6.59086862]
[1730980972400,3.48,186.63,186.53,6.59086862]
[1730980972707,6.59086862,186.63,186.57,6.59086862]
[1730980973006,2.6785,186.59,186.57,6.59086862]
[1730980974301,8.58345765,186.68,186.58,6.59086862]
[1730980974302,2.6783,186.6,186.58,6.59086862]
[1730980975408,6.59086862,186.64,186.54,1.2878]
[1730980975610,2.6784,186.6,186.58,6.59086862]
[1730980977604,2.6779,186.63,186.59,6.59086862]
[1730980977798,2.6779,186.63,186.62,6.59086862]
[1730980978707,2.6776,186.65,186.62,6.59086862]
[1730980978910,2.6776,186.65,186.64,6.59086862]
[1730980979205,2.6774,186.66,186.64,6.59086862]
[1730980980508,1.2089,186.73,186.65,6.59086862]
[1730980980710,2.6768,186.7,186.69,6.59086862]
[1730980981014,1.2089,186.73,186.69,6.59086862]
[1730980981502,7.79976862,186.73,186.61,1.2647]
[1730980981714,6.59086862,186.72,186.66,6.59086862]
[1730980982006,2.6773,186.67,186.66,6.59086862]
[1730980983007,1.2089,186.73,186.61,1.2647]
[1730980983008,6.59086862,186.71,186.61,1.2647]
[1730980983211,6.59086862,186.7,186.61,1.2647]
[1730980983412,10.29248163,186.72,186.61,11.55718163]
[1730980984004,10.29248163,186.72,186.63,10.29248163]
[1730980984214,2.6769,186.7,186.63,10.29248163]
[1730980984408,1.2089,186.73,186.63,12.97028163]
[1730980984712,4.7312,186.74,186.66,10.29248163]
[1730980985310,2.6768,186.71,186.66,10.29248163]
[1730980987326,63.51245806,186.78,186.66,10.29248163]
[1730980987527,2.6769,186.7,186.66,10.29248163]
[1730980989525,63.51245806,186.78,186.66,10.29248163]
[1730980989725,10.29248163,186.76,186.66,10.29248163]
[1730980990824,2.6773,186.67,186.66,10.29248163]
[1730980991041,2.66695723,186.74,186.65,3.48]
[1730980991224,10.29248163,186.76,186.65,3.48]
[1730980992227,2.6773,186.67,186.65,3.48]
[1730980992543,53.21997643,186.78,186.63,10.29248163]
[1730980992544,10.29248163,186.73,186.63,10.29248163]
[1730980992730,2.677,186.69,186.61,11.55718163]
[1730980992927,2.6979287,186.71,186.61,11.55718163]
[1730980993440,2.6778,186.64,186.61,11.55718163]
[1730980995730,2.6779,186.63,186.61,11.55718163]
[1730980997033,16.39670464,186.71,186.61,11.55718163]
[1730980997225,2.678,186.62,186.61,11.55718163]
[1730980997631,16.39670464,186.71,186.61,11.55718163]
[1730980997827,2.6779,186.63,186.61,11.55718163]
[1730981000936,5.3522,186.76,186.61,11.55718163]
[1730981000937,2.6774,186.67,186.62,2.6779]
[1730981001145,2.6774,186.67,186.65,10.29248163]
[1730981001638,6.11841948,186.74,186.65,10.29248163]
[1730981001639,2.6772,186.68,186.65,10.29248163]
[1730981002946,2.61700498,186.74,186.65,10.29248163]
[1730981003243,2.6774,186.66,186.65,10.29248163]
[1730981003448,2.6774,186.66,186.65,6.58605165]
[1730981004836,2.6779,186.63,186.61,1.2647]
[1730981005037,6.58605165,186.69,186.62,6.58605165]
[1730981005243,6.58605165,186.69,186.64,6.58605165]
[1730981007035,2.6774,186.66,186.64,6.58605165]
[1730981007339,6.58605165,186.7,186.65,6.58605165]
[1730981007543,7.33481948,186.75,186.65,6.58605165]
[1730981007544,2.6773,186.67,186.65,6.58605165]
[1730981007733,3.26,186.74,186.67,6.58605165]
[1730981007937,6.58605165,186.72,186.67,6.58605165]
[1730981008145,2.6771,186.68,186.67,6.58605165]
[1730981009035,2.6773,186.67,186.65,6.58605165]
[1730981011343,2.6774,186.66,186.65,6.58605165]
[1730981011747,2.6774,186.66,186.64,6.58605165]
[1730981012442,2.73888821,186.74,186.65,6.58605165]
[1730981012648,2.6773,186.67,186.65,6.58605165]
[1730981012944,6.58605165,186.71,186.65,6.58605165]
[1730981013239,2.6773,186.67,186.65,6.58605165]
[1730981014441,2.6771,186.69,186.65,6.58605165]
[1730981014636,6.58605165,186.72,186.67,6.58605165]
[1730981015136,2.6771,186.69,186.67,6.58605165]
[1730981016141,2.6769,186.7,186.67,6.58605165]
[1730981016843,2.6767,186.71,186.68,6.58605165]
[1730981017043,2.6767,186.71,186.7,6.58605165]
[1730981017249,6.58605165,186.74,186.7,6.58605165]
[1730981017649,2.6767,186.72,186.7,6.58605165]
[1730981018949,2.6765,186.73,186.71,6.58605165]
[1730981019648,2.6763,186.74,186.71,6.58605165]
[1730981020043,6.12722014,186.77,186.73,6.58605165]
[1730981020246,2.6761,186.75,186.73,6.58605165]
[1730981021451,2.6763,186.74,186.73,6.58605165]
[1730981021652,6.58605165,186.76,186.71,6.58605165]
[1730981022051,2.6766,186.72,186.71,6.58605165]
[1730981022846,6.12722014,186.77,186.71,6.58605165]
[1730981023051,2.6764,186.74,186.71,6.58605165]
[1730981024151,6.58605165,186.76,186.71,6.58605165]
[1730981024455,2.6764,186.73,186.71,6.58605165]
[1730981028258,2.6766,186.72,186.71,6.58605165]
[1730981028956,12.71327179,186.77,186.71,6.58605165]
[1730981029259,2.6764,186.73,186.71,6.58605165]
[1730981031258,2.6764,186.73,186.69,1.2486]
[1730981031459,2.6764,186.73,186.72,6.58605165]
[1730981040064,12.71327179,186.77,186.69,1.2486]
[1730981040363,2.6766,186.72,186.71,6.58605165]
[1730981040965,2.6766,186.72,186.71,4.18605165]
[1730981041768,12.71327179,186.77,186.71,4.18605165]
[1730981042160,12.71327179,186.77,186.69,1.2486]
[1730981042365,12.71327179,186.77,186.71,6.58605165]
[1730981042366,2.6761,186.76,186.71,6.58605165]
[1730981042560,12.71327179,186.77,186.71,6.58605165]
[1730981043970,2.6766,186.72,186.71,6.58605165]
[1730981044273,12.71327179,186.77,186.71,6.58605165]
[1730981044473,2.6764,186.73,186.71,6.58605165]
[1730981044864,12.71327179,186.77,186.71,6.58605165]
[1730981045171,2.6763,186.74,186.72,6.58605165]
[1730981045373,6.12722014,186.77,186.72,6.58605165]
[1730981045567,2.6762,186.75,186.72,6.58605165]
[1730981046872,2.676,186.76,186.72,6.58605165]
[1730981047974,2.676,186.76,186.7,2.6767]
[1730981047975,2.676,186.76,186.74,6.58605165]
[1730981050176,49.73997643,186.78,186.74,6.58605165]
[1730981050371,2.6757,186.78,186.75,6.58605165]
[1730981052098,1.3194,186.83,186.75,6.58605165]
[1730981052271,2.6758,186.78,186.75,6.58605165]
[1730981052869,6.58605165,186.81,186.71,3.06]
[1730981053066,6.58605165,186.81,186.74,6.58605165]
[1730981053464,2.6761,186.76,186.74,6.58605165]
[1730981053671,6.58605165,186.81,186.74,6.58605165]
[1730981054070,2.6757,186.78,186.76,6.58605165]
[1730981054372,6.13095729,186.85,186.76,6.58605165]
[1730981054373,9.19095729,186.85,186.76,6.58605165]
[1730981054579,6.58605165,186.84,186.78,6.58605165]
[1730981054976,2.6755,186.79,186.78,6.58605165]
[1730981055175,6.58605165,186.84,186.78,6.58605165]
[1730981055370,2.675,186.83,186.8,6.58605165]
[1730981055573,15.77700894,186.85,186.8,6.58605165]
[1730981055974,15.77700894,186.85,186.77,1.218]
[1730981056274,6.58605165,186.83,186.78,6.58605165]
[1730981056573,6.58605165,186.8,186.68,7.49857478]
[1730981056781,6.58605165,186.8,186.74,6.58605165]
[1730981057171,6.58605165,186.81,186.75,6.58605165]
[1730981057782,2.6756,186.79,186.75,6.58605165]
[1730981058276,6.58605165,186.81,186.77,6.58605165]
[1730981059071,2.6756,186.79,186.77,6.58605165]
[1730981059384,6.13095729,186.85,186.78,6.58605165]
[1730981059574,6.13095729,186.85,186.74,4.278]
[1730981059575,12.71700894,186.85,186.79,6.58605165]
[1730981059976,6.58605165,186.83,186.78,6.58605165]
[1730981060677,2.6755,186.8,186.78,6.58605165]
[1730981060884,6.58605165,186.83,186.78,6.58605165]
[1730981061480,2.6755,186.79,186.78,6.58605165]
[1730981063189,2.6755,186.79,186.74,4.278]
[1730981063190,2.6758,186.78,186.76,6.58605165]
[1730981065500,2.6755,186.8,186.76,6.58605165]
[1730981065696,6.58605165,186.81,186.76,6.58605165]
[1730981066399,2.6755,186.8,186.76,6.58605165]
[1730981066599,6.58605165,186.81,186.76,6.58605165]
[1730981066895,2.6751,186.82,186.78,6.58605165]
[1730981067090,15.73700894,186.85,186.78,6.58605165]